fUSD/lending_fUSD_20240717
["ID","MTS","AMOUNT","RATE_DAILY","PERIOD"]
[332447285,1721191831654,-250.0,0.00013,2]
[332447286,1721191831664,-391.21846224,0.000137,2]
[332447287,1721191831676,-300.3,0.000137,2]
[332447288,1721191831687,-261.15578167,0.000137,2]
[332447289,1721191831717,-2431.38265609,0.000137,2]
[332447290,1721191831728,-1702.8958,0.000137,2]
[332447291,1721191831738,-325.00160333,0.00013707,2]
[332447292,1721191831747,-169.64893336,0.0001376,2]
[332447293,1721191831756,-150.0,0.00013799,2]
[332447294,1721191831765,-300.0,0.00013799,2]
[332447295,1721191831774,-31425.53959442,0.000138,2]
[332447296,1721191831786,-572.88577079,0.000138,2]
[332447297,1721191831797,-284.1080006,0.000138,2]
[332447298,1721191831808,-251.88644517,0.000138,2]
[332447299,1721191831819,-1132.51470823,0.000138,2]
[332447300,1721191831830,-3394.36268549,0.000138,2]
[332447301,1721191831849,-1022.98488966,0.000138,2]
[332447302,1721191831860,-523.5831166,0.000138,2]
[332447303,1721191831871,-1156.33265656,0.000138,2]
[332447304,1721191831882,-341.34701288,0.000138,2]
[332447305,1721191831931,-281.19172138,0.000138,2]
[332447306,1721191831949,-436.64173545,0.000138,2]
[332447307,1721191832493,-5070.95271503,0.000138,2]
[332447308,1721191832504,-312.75876885,0.000138,2]
[332447309,1721191832515,-301.0,0.000138,2]
[332447310,1721191832526,-3153.12701687,0.000138,2]
[332447311,1721191832537,-3934.02072546,0.000138,2]
[332447312,1721191832549,-14355.45898269,0.000138,2]
[332447313,1721191832571,-775.19666386,0.000138,2]
[332447314,1721191832582,-1000.37172,0.000138,2]
[332447315,1721191832593,-27978.1165127,0.000138,2]
[332447316,1721191832608,-440.0,0.000138,2]
[332447317,1721191832619,-26792.70745138,0.000138,2]
[332447318,1721191832630,-315458.91110593,0.000138,2]
[332447319,1721191832640,-169.64893334,0.00013807,2]
[332447320,1721191832653,-169.64893334,0.00013853,2]
[332447321,1721191832663,-32522.0,0.0001386,2]
[332447322,1721191832672,-632.51432141,0.000139,2]
[332447323,1721191832682,-169.64893334,0.000139,2]
[332447324,1721191832691,-302.08319943,0.00013999,2]
[332447325,1721191832700,-152.52711144,0.00013999,2]
[332447326,1721191832710,-238078.30309994,0.00014,2]
[332447327,1721191832722,-9808.16827319,0.00014,2]
[332447329,1721191832734,-13431.17867272,0.00014,2]
[332447331,1721191832750,-1444.14581354,0.00014,2]
[332447333,1721191837627,-426.35735425,0.00014,2]
[332447334,1721191837684,-2163.65401187,0.00014,2]
[332447335,1721191837696,-426673.88415512,0.00014,2]
[332447336,1721191837707,-590.05754824,0.00014,2]
[332447337,1721191837744,-1172871.05571278,0.00014,2]
[332447338,1721191837755,-847652.78216643,0.00014,2]
[332447339,1721191837803,-303.95,0.00014,2]
[332447340,1721191837863,-1118.64598073,0.00014,2]
[332447341,1721191837875,-8119.95917606,0.00014,2]
[332447342,1721191837886,-1173.65274454,0.00014,2]
[332447343,1721191837898,-64923.21360309,0.00014,2]
[332447344,1721191837909,-16125.29401725,0.00014,2]
[332447345,1721191837920,-28722.8141531,0.00014,2]
[332447515,1721191839678,-727791.93768786,0.00014,2]
[332447537,1721191839893,-1259.96086,0.00014,2]
[332447543,1721191839947,-4112.87853256,0.00014,2]
[332447545,1721191839959,-38093.31421743,0.00014,2]
[332447547,1721191839973,-2844.67368354,0.00014,2]
[332447553,1721191840020,-8840.19040144,0.00014,2]
[332447555,1721191840032,-349.155,0.00014,2]
[332447557,1721191840043,-1153.83110659,0.00014,2]
[332447562,1721191840083,-410.17085513,0.00014,2]
[332447822,1721191842745,-1713.21138072,0.00014,2]
[332447824,1721191842756,-51954.29776261,0.00014,2]
[332447836,1721191842860,-1266.66506267,0.00014,2]
[332447849,1721191842968,-641.85958326,0.00014,2]
[332447856,1721191843023,-659.44059965,0.00014,2]
[332448137,1721191845787,-12181.7374,0.00014,2]
[332448186,1721191846241,-12767.91436416,0.00014,2]
[332448471,1721192300927,249.62,0.00018849,30]
[332448472,1721192394404,540.0,0.0002222,120]
[332448476,1721192892093,587.08,0.00010488,2]
[332448493,1721192962474,1375.32888084,0.00010488,2]
[332448494,1721192962993,861.25579204,0.00010488,2]
[332448496,1721192982610,6401.12840126,0.00010488,2]
[332448497,1721192982634,4549.66828842,0.00010488,2]
[332448498,1721192995171,202.4621365,0.00010488,2]
[332448503,1721193031770,-4327.95496066,0.00011098,2]
[332448504,1721193031827,-139.06987399,0.00011098,2]
[332448505,1721193031836,-3030.02587802,0.00011098,2]
[332448506,1721193031846,-1709.59103724,0.00011098,2]
[332448507,1721193031885,-1368.52449295,0.00011098,2]
[332448508,1721193031895,-4071.43550705,0.00011189,2]
[332448509,1721193031907,-361.36554768,0.00011189,2]
[332448510,1721193031953,-6126.5699088,0.00011189,2]
[332448511,1721193031963,-266.65808279,0.00011197,2]
[332448512,1721193031976,-2882.05104687,0.00011197,2]
[332448513,1721193031986,-748.39128451,0.00011197,2]
[332448514,1721193031999,-150.0,0.00011198,2]
[332448515,1721193032014,-11959.50766863,0.00011199,2]
[332448516,1721193032076,-5687.19154647,0.00011199,2]
[332448517,1721193032086,-1000.0,0.00011199,2]
[332448518,1721193032098,-35461.67975692,0.00011199,2]
[332448519,1721193032107,-255.0,0.00012251,2]
[332448520,1721193032116,-2239.03212323,0.00012273,2]
[332448521,1721193032126,-863.07863697,0.00012302,2]
[332448522,1721193032135,-533.69541907,0.00012302,2]
[332448523,1721193032144,-694.73,0.0001234,2]
[332448524,1721193032153,-10514.08323,0.00012377,2]
[332448525,1721193032164,-3094.2,0.00012377,2]
[332448526,1721193032176,-939.2,0.00012377,2]
[332448527,1721193032188,-9352.51677,0.00012377,2]
[332448529,1721193032197,-250.0,0.00012398,2]
[332448530,1721193032206,-212.45,0.0001241,2]
[332448532,1721193032215,-182.0,0.00012573,2]
[332448534,1721193032225,-150.0,0.000126,2]
[332448535,1721193032234,-169.66,0.0001267,2]
[332448536,1721193032243,-250.0,0.00012687,2]
[332448537,1721193032253,-472.28466297,0.00012707,2]
[332448538,1721193032264,-26.62533703,0.00012707,2]
[332448539,1721193032273,-150.0,0.00012708,2]
[332448540,1721193032284,-547.50514469,0.00012713,2]
[332448541,1721193032293,-448.71426765,0.00012713,2]
[332448542,1721193032302,-292.72,0.00012713,2]
[332448543,1721193032311,-499.99,0.00012713,2]
[332448544,1721193032320,-910.58,0.00012713,2]
[332448545,1721193032329,-1955.44,0.00012713,2]
[332448546,1721193032338,-587.08,0.00012751,2]
[332448547,1721193032347,-150.0,0.00012815,2]
[332448548,1721193032357,-150.0,0.00012923,2]
[332448549,1721193032366,-1349.76,0.00012933,2]
[332448550,1721193032375,-1235.88,0.00012966,2]
[332448551,1721193032384,-150.0,0.00013031,2]
[332448552,1721193032394,-500.0,0.00013102,2]
[332448553,1721193032404,-1555.85,0.00013128,2]
[332448554,1721193032413,-527.15045687,0.00013128,2]
[332448555,1721193032422,-150.0,0.00013138,2]
[332448556,1721193032431,-150.0,0.00013216,2]
[332448557,1721193032440,-999.99,0.00013216,2]
[332448558,1721193032449,-760.24,0.00013216,2]
[332448559,1721193032459,-150.0,0.00013246,2]
[332448560,1721193032468,-760.0,0.00013307,2]
[332448561,1721193032476,-150.0,0.00013354,2]
[332448562,1721193032485,-259.0,0.00013404,2]
[332448563,1721193032494,-150.0,0.00013462,2]
[332448564,1721193032503,-1636.83660806,0.00013472,2]
[332448565,1721193032512,-155.13701911,0.00013516,2]
[332448566,1721193032521,-150.0,0.00013569,2]
[332448567,1721193032532,-150.0,0.00013677,2]
[332448568,1721193032541,-1030.21440378,0.00013699,2]
[332448569,1721193032552,-841.10559622,0.00013699,2]
[332448570,1721193032564,-3791.90918763,0.00013699,2]
[332448571,1721193032575,-1956.37593354,0.00013699,2]
[332448572,1721193032585,-2815.3,0.00013699,2]
[332448573,1721193032596,-1722.63024292,0.00013699,2]
[332448574,1721193032607,-483.39404204,0.00013699,2]
[332448575,1721193032627,-565.82,0.00013699,2]
[332448613,1721193037933,-2821.24222915,0.00013699,2]
[332448614,1721193037944,-2000.0,0.00013699,2]
[332448615,1721193037991,-6918.065367,0.00013699,2]
[332448616,1721193038057,-1302.15634541,0.00013699,2]
[332448617,1721193038068,-675.54813812,0.00013699,2]
[332448618,1721193038079,-12160.19851419,0.00013699,2]
[332448619,1721193038089,-745.13,0.00013699,2]
[332448620,1721193038098,-250.0,0.00013699,2]
[332448621,1721193038107,-252.93,0.00013699,2]
[332448622,1721193038117,-1500.0,0.00013699,5]
[332448623,1721193038126,-190.29662986,0.00013736,2]
[332448624,1721193038135,-417.93936495,0.00013748,2]
[332448625,1721193038144,-150.0,0.00013785,2]
[332448626,1721193038153,-536.87176384,0.0001379,2]
[332448627,1721193038163,-2316.72880352,0.00013799,2]
[332448628,1721193038173,-267.30928051,0.00013802,2]
[332448629,1721193038183,-1069.11047,0.0001386,2]
[332448630,1721193038193,-150.0,0.00013892,2]
[332448631,1721193038203,-156.10991695,0.00013899,2]
[332448632,1721193038212,-432.39986158,0.00013899,2]
[332448633,1721193038221,-685.81454762,0.00013899,2]
[332448634,1721193038231,-2645.7059,0.000139,2]
[332448635,1721193038241,-3061.2239,0.000139,2]
[332448636,1721193038251,-323.18540065,0.000139,2]
[332448637,1721193038261,-574.06914206,0.000139,2]
[332448638,1721193038271,-1071.38883607,0.000139,2]
[332448639,1721193038282,-172.44013469,0.00013989,2]
[332448640,1721193038292,-16022.961,0.0001399,2]
[332448641,1721193038301,-1249.22226012,0.0001399,2]
[332448642,1721193038311,-164.91172843,0.0001399,2]
[332448643,1721193038320,-164.91172843,0.0001399,2]
[332448644,1721193038330,-170.57,0.0001399,2]
[332448645,1721193038339,-4437.967667,0.00013998,2]
[332448646,1721193038348,-6656.951501,0.00013998,2]
[332448647,1721193038357,-8875.935335,0.00013998,2]
[332448648,1721193038367,-11094.919168,0.00013998,2]
[332448649,1721193038376,-15532.886836,0.00013998,2]
[332448650,1721193038385,-17751.87067,0.00013998,2]
[332448651,1721193038394,-541.97416256,0.00013999,2]
[332448652,1721193038403,-234.5937347,0.00013999,2]
[332448653,1721193038412,-227.48899484,0.00013999,2]
[332448654,1721193038421,-500.0,0.00013999,2]
[332448655,1721193038430,-500.0,0.00013999,2]
[332448656,1721193038439,-500.0,0.00013999,2]
[332448657,1721193038448,-500.0,0.00013999,2]
[332448659,1721193038458,-500.0,0.00013999,2]
[332448661,1721193038467,-500.0,0.00013999,2]
[332448662,1721193038476,-438.64822154,0.00013999,2]
[332448664,1721193038485,-500.0,0.00013999,2]
[332448666,1721193038494,-500.0,0.00013999,2]
[332448668,1721193038503,-363.0706434,0.00013999,2]
[332448670,1721193038513,-500.0,0.00013999,2]
[332448673,1721193038522,-500.0,0.00013999,2]
[332448675,1721193038531,-394.40480309,0.00013999,2]
[332448677,1721193038544,-500.0,0.00013999,2]
[332448679,1721193038553,-500.0,0.00013999,2]
[332448681,1721193038562,-164.21561428,0.00013999,2]
[332448683,1721193038571,-176.52011093,0.00013999,2]
[332448685,1721193038580,-1053078.17906697,0.00014,2]
[332448687,1721193038591,-847652.78216643,0.00014,2]
[332448694,1721193038653,-540.33523103,0.00014,2]
[332448696,1721193038664,-2752.47299442,0.00014,2]
[332448699,1721193038674,-955.18744532,0.00014,2]
[332448716,1721193038839,-2228846.26178727,0.00014,2]
[332448719,1721193038852,-1978.07555297,0.00014,2]
[332448721,1721193038863,-1036.8523,0.00014,2]
[332448724,1721193038885,-22256.41329664,0.00014,2]
[332448726,1721193038895,-5314.22404625,0.00014,2]
[332448728,1721193038906,-393.42218723,0.00014,2]
[332448730,1721193038917,-29740.1200001,0.00014,2]
[332448740,1721193038997,448.71426765,0.00010488,2]
[332448805,1721193039896,-1684.53,0.00014,2]
[332448806,1721193039907,-560.74648956,0.00014,2]
[332448807,1721193039920,-9663.98389362,0.00014,2]
[332448808,1721193039932,-728.51159949,0.00014,2]
[332448809,1721193040828,-1339.42284279,0.00014,2]
[332448810,1721193040887,-910.0,0.00014,2]
[332448811,1721193040898,-1328530.25328159,0.00014,2]
[332448812,1721193040909,-514.90811892,0.00014,2]
[332448813,1721193040946,-222638.7851534,0.00014,2]
[332448814,1721193041012,-560.58454009,0.00014,2]
[332448815,1721193041023,-13256.87732019,0.00014,2]
[332448816,1721193041125,-13857.20132762,0.00014,2]
[332448818,1721193041137,-9613.92971346,0.00014,2]
[332448985,1721193042947,-250576.00000011,0.00014,2]
[332448986,1721193042959,-302.23,0.00014,2]
[332448987,1721193042971,-300.1,0.00014,2]
[332448988,1721193042982,-301.132,0.00014,2]
[332448989,1721193042993,-274.264,0.00014,2]
[332448990,1721193043009,-309.865,0.00014,2]
[332448991,1721193043020,-726.10859952,0.00014,2]
[332448992,1721193043042,-5960.15353982,0.00014,2]
[332448993,1721193043055,-516.50550932,0.00014,2]
[332448994,1721193043066,-249924.04606283,0.00014,2]
[332448996,1721193043080,-58747.03784142,0.00014,2]
[332449007,1721193043187,-13201.38840058,0.00014,2]
[332449009,1721193043197,-150.69869781,0.00014,2]
[332449011,1721193043206,-252.93,0.00014384,2]
[332449013,1721193043215,-227.39291056,0.00014393,2]
[332449015,1721193043226,-155.0,0.00014499,2]
[332449017,1721193043236,-258.61370682,0.00014499,2]
[332449019,1721193043245,-200.0,0.00014499,2]
[332449021,1721193043255,-624.79905243,0.00014499,2]
[332449023,1721193043264,-12790.35705812,0.000145,2]
[332449025,1721193043274,-204.327048,0.00014521,2]
[332449027,1721193043283,-181.68,0.00014565,2]
[332449028,1721193043295,-168.23,0.00014574,2]
[332449030,1721193043304,-624.79905243,0.00014849,2]
[332449032,1721193043313,-292.77204294,0.00014849,2]
[332449034,1721193043323,-760.0,0.00014971,2]
[332449036,1721193043333,-155.54759304,0.00014973,2]
[332449039,1721193043342,-300.0,0.00014973,2]
[332449041,1721193043351,-300.0,0.00015,2]
[332449042,1721193043361,-587.08,0.00015015,2]
[332449044,1721193043370,-252.93,0.00015068,2]
[332449046,1721193043379,-204.327048,0.00015342,2]
[332449048,1721193043388,-598.0,0.000155,3]
[332449050,1721193043398,-604.0,0.000157,2]
[332449052,1721193043407,-252.93,0.00015753,2]
[332449054,1721193043416,-476.53739958,0.00016,2]
[332449056,1721193043428,-1822.31939735,0.00016,2]
[332449058,1721193043439,-418.79069005,0.00016,2]
[332449060,1721193043448,-281.20930995,0.00016034,2]
[332449063,1721193043463,-2035.51949348,0.00016034,2]
[332449065,1721193043472,-536.87176382,0.00016034,2]
[332449067,1721193043482,-204.327048,0.00016164,2]
[332449069,1721193043491,-159.68,0.00016171,2]
[332449071,1721193043500,-1069.11048,0.0001636,2]
[332449072,1721193043510,-252.93,0.00016438,2]
[332449075,1721193043520,-760.0,0.00016634,2]
[332449076,1721193043529,-323.18540065,0.00016659,2]
[332449078,1721193043538,-15504.53920436,0.00016969,2]
[332449081,1721193043550,-436.10504422,0.00016969,2]
[332449083,1721193043561,-1081.77587847,0.00016969,2]
[332449085,1721193043572,-364.00000001,0.00016969,2]
[332449087,1721193043584,-2835.0,0.00016969,2]
[332449090,1721193043599,-6047.40810472,0.00016969,2]
[332449092,1721193043610,-536.28001313,0.00016969,2]
[332449094,1721193043621,-30000.0,0.00016969,2]
[332449096,1721193043632,-2727.94407738,0.00016969,2]
[332449099,1721193043643,-993.88534933,0.00016969,2]
[332449292,1721193045936,-690.60504577,0.00016969,2]
[332449295,1721193045948,-270.462826,0.00016969,2]
[332449297,1721193045960,-819.48864063,0.00016969,2]
[332449302,1721193045998,-1839.23938075,0.00016969,2]
[332449304,1721193046012,-3435.2817797,0.00016969,2]
[332449310,1721193046060,-6592.17591432,0.00016969,2]
[332449312,1721193046071,-15078.24404532,0.00016969,2]
[332449323,1721193046174,-542.741,0.00016969,2]
[332449444,1721193469743,358.503461,0.00010987,2]
[332449446,1721193523075,448.71426765,0.00010987,2]
[332449447,1721193523547,1368.19930946,0.00010987,2]
[332449449,1721193631080,448.71426765,0.00010987,2]
[332449451,1721193712045,448.71426765,0.00010987,2]
[332449454,1721193801092,448.71426765,0.00010987,2]
[332449458,1721193901096,448.71426765,0.00010987,2]
[332449464,1721194010048,448.71426765,0.00010987,2]
[332449468,1721194088029,566.91,0.00010865,2]
[332449469,1721194111059,448.71426765,0.00010987,2]
[332449483,1721194196072,448.71426765,0.00010987,2]
[332449502,1721194232973,-150.0,0.00011097,2]
[332449503,1721194232983,-155.4280801,0.00011098,2]
[332449504,1721194232995,-155.68297416,0.00011098,2]
[332449505,1721194233005,-160.50790572,0.00011098,2]
[332449506,1721194233014,-521.34144675,0.00011098,2]
[332449507,1721194233024,-426.63857339,0.00011098,2]
[332449508,1721194233034,-155.0,0.00011098,2]
[332449509,1721194233043,-2291.99670395,0.00011098,2]
[332449510,1721194233073,-1112.11827839,0.00011098,2]
[332449511,1721194233083,-2750.93321925,0.00011098,2]
[332449512,1721194233093,-3815.63523025,0.00011098,2]
[332449513,1721194233112,-854.8607206,0.00011098,2]
[332449514,1721194233213,-603.68196204,0.00011098,2]
[332449515,1721194233271,-989.41085538,0.00011098,2]
[332449516,1721194233281,-452.30751183,0.00011098,2]
[332449517,1721194233290,-188.46892234,0.00011098,2]
[332449518,1721194233300,-2833.71037734,0.00011196,2]
[332449519,1721194233310,-6789.50409109,0.00011199,2]
[332449520,1721194233322,-3740.85988499,0.00011199,2]
[332449521,1721194233331,-4367.44074273,0.00011199,2]
[332449522,1721194233343,-543.83019264,0.00011199,2]
[332449523,1721194233354,-7499.01025656,0.00011199,2]
[332449524,1721194233377,-556.51129472,0.00011199,2]
[332449549,1721194238008,-513.12704768,0.00011199,2]
[332449554,1721194238020,-1500.0,0.00011199,2]
[332449559,1721194238045,-9037.05585415,0.00011199,2]
[332449568,1721194238084,-42.16365524,0.00011199,2]
[332449571,1721194238094,-13025.08471312,0.00011199,2]
[332449574,1721194238103,-195.0,0.00012151,2]
[332449577,1721194238113,-439.12822285,0.00012273,2]
[332449580,1721194238122,-176.52011093,0.00012273,2]
[332449583,1721194238132,-685.81454762,0.00012302,2]
[332449586,1721194238142,-155.64705063,0.00012302,2]
[332449589,1721194238151,-357.81312722,0.00012302,2]
[332449592,1721194238160,-156.10991695,0.00012314,2]
[332449595,1721194238169,-190.29662986,0.00012314,2]
[332449597,1721194238179,-250.0,0.0001298,2]
[332449599,1721194238188,-250.0,0.00013,2]
[332449600,1721194238197,-499.99,0.00013,2]
[332449601,1721194238207,-5456.3,0.00013128,2]
[332449602,1721194238216,-2684.84,0.00013128,2]
[332449603,1721194238225,-796.0,0.00013128,2]
[332449604,1721194238235,-566.91,0.00013129,2]
[332449605,1721194238244,-169.66,0.00013149,2]
[332449607,1721194238253,-432.39986158,0.00013317,2]
[332449609,1721194238263,-718.8891333,0.00013317,2]
[332449610,1721194238272,-181.68,0.00013418,2]
[332449611,1721194238284,-1636.83660806,0.00013472,2]
[332449612,1721194238298,-1254.63523304,0.00013516,2]
[332449613,1721194238307,-1075.18,0.00013599,2]
[332449614,1721194238316,-2508.7196,0.00013599,2]
[332449615,1721194238326,-745.0577,0.00013599,2]
[332449616,1721194238335,-250.0,0.00013699,2]
[332449617,1721194238345,-2751.0,0.00013699,2]
[332449618,1721194238355,-1500.0,0.00013699,5]
[332449619,1721194238364,-252.96,0.00013699,2]
[332449620,1721194238374,-1056.4639937,0.00013736,2]
[332449621,1721194238383,-635.84027059,0.00013849,2]
[332449622,1721194238396,-2085.05592315,0.00013899,2]
[332449623,1721194238405,-752.06739374,0.00013899,2]
[332449624,1721194238415,-909.7757,0.000139,2]
[332449625,1721194238424,-674.04080023,0.000139,2]
[332449626,1721194238437,-2085.05592309,0.0001391,2]
[332449627,1721194238447,-2085.05592309,0.00013921,2]
[332449628,1721194238457,-2085.05592309,0.00013932,2]
[332449629,1721194238467,-2085.05592309,0.00013943,2]
[332449630,1721194238478,-2085.05592309,0.00013955,2]
[332449631,1721194238488,-2085.05592309,0.00013966,2]
[332449632,1721194238497,-2085.05592309,0.00013977,2]
[332449633,1721194238507,-658.72834656,0.00013988,2]
[332449634,1721194238519,-1426.32757653,0.00013988,2]
[332449635,1721194238531,-234.20648273,0.00013989,2]
[332449636,1721194238543,-32.58355272,0.00013989,2]
[332449637,1721194238552,-237.71047658,0.00013989,2]
[332449638,1721194238563,-475.47723529,0.00013989,2]
[332449639,1721194238572,-482.65656637,0.0001399,2]
[332449640,1721194238582,-766.56569375,0.0001399,2]
[332449641,1721194238591,-1926.74934197,0.0001399,2]
[332449642,1721194238602,-257.82237684,0.0001399,2]
[332449643,1721194238614,-2322.71992869,0.0001399,2]
[332449644,1721194238624,-170.57,0.0001399,2]
[332449645,1721194238634,-172.685305,0.0001399,2]
[332449646,1721194238643,-172.685305,0.0001399,2]
[332449647,1721194238652,-172.685305,0.0001399,2]
[332449648,1721194238662,-1894.10490657,0.00013997,2]
[332449649,1721194238671,-497.89218454,0.00013998,2]
[332449650,1721194238683,-2719.63437446,0.00013998,2]
[332449651,1721194238692,-4383.36125107,0.00013998,2]
[332449652,1721194238703,-352.73389865,0.00013998,2]
[332449653,1721194238715,-90.19468828,0.00013998,2]
[332449654,1721194238724,-344.55322159,0.00013998,2]
[332449655,1721194238745,-6090.49989641,0.00013998,2]
[332449656,1721194238755,-8043.816397,0.00013998,2]
[332449657,1721194238765,-11261.342956,0.00013998,2]
[332449658,1721194238778,-12870.106236,0.00013998,2]
[332449659,1721194238788,-541.97416256,0.00013999,2]
[332449660,1721194238798,-185.32905041,0.00013999,2]
[332449661,1721194238808,-500.0,0.00013999,2]
[332449662,1721194238818,-500.0,0.00013999,2]
[332449663,1721194238828,-500.0,0.00013999,2]
[332449664,1721194238838,-500.0,0.00013999,2]
[332449665,1721194238848,-260.29941076,0.00013999,2]
[332449666,1721194238867,-239.70058924,0.00013999,2]
[332449667,1721194238877,-438.64822154,0.00013999,2]
[332449668,1721194238887,-500.0,0.00013999,2]
[332449669,1721194238896,-209.6944547,0.00013999,2]
[332449670,1721194238905,-500.0,0.00013999,2]
[332449671,1721194238915,-500.0,0.00013999,2]
[332449672,1721194238924,-326.35347244,0.00013999,2]
[332449673,1721194238934,-500.0,0.00013999,2]
[332449674,1721194238944,-207.60326208,0.00013999,2]
[332449675,1721194239354,-292.39673792,0.00013999,2]
[332449676,1721194239363,-500.0,0.00013999,2]
[332449677,1721194239373,-53.17808805,0.00013999,2]
[332449678,1721194239390,-446.82191195,0.00013999,2]
[332449679,1721194239401,-500.0,0.00013999,2]
[332449680,1721194239411,-500.0,0.00013999,2]
[332449681,1721194239420,-350.0,0.00013999,2]
[332449682,1721194239430,-227.48899484,0.00013999,2]
[332449683,1721194239442,-5463.91836778,0.00013999,2]
[332449684,1721194239453,-979.5803954,0.00013999,2]
[332449685,1721194239465,-795.2682055,0.00013999,2]
[332449686,1721194239477,-1007.38297438,0.00013999,2]
[332449687,1721194239488,-880.46513634,0.00013999,2]
[332449688,1721194239498,-21.68749684,0.00013999,2]
[332449689,1721194239509,-478.31250316,0.00013999,2]
[332449690,1721194239518,-476.06870409,0.00013999,2]
[332449691,1721194239531,-346.93460697,0.00013999,2]
[332449692,1721194239540,-2085.05592309,0.00013999,2]
[332449693,1721194239549,-340.75310283,0.00013999,2]
[332449694,1721194239559,-155.03777807,0.00013999,2]
[332449695,1721194239568,-1489.90010016,0.00013999,2]
[332449696,1721194239578,-181.1629576,0.00013999,2]
[332449697,1721194239587,-1722.20742616,0.00013999,2]
[332449698,1721194239597,-1165595.62261065,0.00014,2]
[332449699,1721194239608,-847652.78216643,0.00014,2]
[332449700,1721194239632,-284.51111494,0.00014,2]
[332449701,1721194239643,-3486.1,0.00014,2]
[332449718,1721194240109,-2382.82843969,0.00013128,2]
[332449720,1721194240118,-7804604.25173562,0.00014,2]
[332449722,1721194240131,-72588.39459769,0.00014,2]
[332449724,1721194240142,-21513.17267246,0.00014,2]
[332449726,1721194240271,-1523.70000067,0.00014,2]
[332449727,1721194240333,-882.31896401,0.00014,2]
[332449728,1721194240411,-268.03773527,0.00014,2]
[332449772,1721194243068,-1881.76573124,0.0001282,2]
[332449773,1721194243080,-3345.55,0.0001282,2]
[332449774,1721194243207,-1605.35180376,0.0001282,2]
[332449775,1721194243220,-1064.00008,0.0001282,2]
[332449776,1721194243231,-349.33635547,0.0001282,2]
[332449777,1721194243351,-351.21487224,0.0001282,2]
[332449778,1721194243366,-1165.39763693,0.0001282,2]
[332449785,1721194246174,-3823.05,0.0001282,2]
[332449786,1721194246191,-584.82021014,0.0001282,2]
[332449787,1721194246320,-1349.08580306,0.0001282,2]
[332449798,1721194545988,160.51,0.00018849,30]
[332449800,1721194626040,541.33,0.00010904,2]
[332449801,1721194664106,448.71426765,0.00010904,2]
[332449802,1721194761099,570.59585827,0.00010904,2]
[332449804,1721194912771,4791.81180088,0.00010904,2]
[332449805,1721194932533,158.70478125,0.00010904,2]
[332449806,1721194952603,188.40991437,0.00010904,2]
[332449807,1721194963132,2643.85913875,0.00010904,2]
[332449808,1721194973580,-300.0,0.00011097,2]
[332449809,1721194973602,-679.34166426,0.00011098,2]
[332449810,1721194973624,-1574.91045879,0.00011098,2]
[332449811,1721194973655,-734.85127068,0.00011098,2]
[332449812,1721194973680,-722.84871215,0.00011098,2]
[332449813,1721194973702,-1294.33056682,0.00011098,2]
[332449814,1721194973727,-4065.05433443,0.00011098,2]
[332449815,1721194973748,-628.66299287,0.00011098,2]
[332449816,1721194974120,-2355.31650713,0.00011098,2]
[332449818,1721195029420,701.78551914,0.00011099,2]
[332449820,1721195048932,3030.02587802,0.00011098,2]
[332449821,1721195063410,3912.87209571,0.00011098,2]
[332449822,1721195063432,1185.83774329,0.00011098,2]
[332449823,1721195084202,2204.54280756,0.00011098,2]
[332449824,1721195094605,283.5625932,0.00011098,2]
[332449825,1721195094958,221.36886387,0.00011098,2]
[332449826,1721195099225,2204.54280756,0.00011098,2]
[332449827,1721195106757,798.16396892,0.00011098,2]
[332449828,1721195140935,207.36480339,0.00011098,2]
[332449829,1721195171934,173.46,9.988e-05,2]
[332449830,1721195216747,195.51156248,0.00011098,2]
[332449831,1721195243262,227.39291056,0.00011098,2]
[332449832,1721195270030,1183.39761798,0.00011098,2]
[332449833,1721195274028,1114.85432119,0.00011098,2]
[332449834,1721195274051,333.03350988,0.00011098,2]